Cogmind - Beta 9.6 @@@ ROGUE MODE // 2020.06.27 @ 19:59:41 Player: 277 Result: Self-destructed Performance ------------- Evolutions (1) 500 Regions Visited (3) 600 Robots Destroyed (7) 35 Value Destroyed (70) 70 Prototype IDs (0) 0 Alien Tech Used (0) 0 Bonus (0) 0 TOTAL SCORE: 1205 Bonus ------- None Cogmind --------- Core Integrity 193/400 Matter 300/300 Energy 99/100 System Corruption 2% Temperature Cool (0) Movement Core (50) Location -9/Materials Parts ------- > --- POWER (1) -------- (None) > --- PROPULSION (3) --- (None) > --- UTILITY (3) ------ Seismic Analyzer > --- WEAPON (2) ------- (None) > --- INVENTORY (4) ---- Weight Redist. System Sensor Array Mining Laser Peak State ------------ > --- POWER ------------ Light Ion Engine > --- PROPULSION ------- Flight Unit Flight Unit > --- UTILITY ---------- Improved Terrain Scanner Seismic Analyzer > --- WEAPON ----------- Small Laser Beam Cannon > --- INVENTORY -------- Sensor Array Mining Laser [Rating: 8] Favorites ----------- Power Light Ion Engine Engine Light Ion Engine Propulsion Flight Unit Treads Light Treads Flight Unit Flight Unit Utility Seismic Analyzer Device Improved Terrain Scanner Processor Seismic Analyzer Weapon EM Pulse Gun Energy Gun EM Pulse Gun Energy Cannon Beam Cannon Build | -11 -10 -10 -9 ------- Run | Scr Mat Min Mat Slots Evolved 2 | . . . 2 Power . | . . . . Propulsion 1 | . . . 1 Utility 1 | . . . 1 Weapon . | . . . . Parts Attached 14 | 5 8 . 1 Power 1 | . 1 . . Engine 1 | . 1 . . Core . | . . . . Reactor . | . . . . Propulsion 4 | 2 2 . . Treads 2 | 2 . . . Leg . | . . . . Wheel . | . . . . Hover . | . . . . Flight 2 | . 2 . . Utility 2 | 2 . . . Device 1 | 1 . . . Storage . | . . . . Processor 1 | 1 . . . Hackware . | . . . . Protection . | . . . . Artifact . | . . . . Weapon 7 | 1 5 . 1 Energy Gun 5 | 1 4 . . Energy Cannon 2 | . 1 . 1 Ballistic Gun . | . . . . Ballistic Cannon . | . . . . Launcher . | . . . . Special Weapon . | . . . . Impact Weapon . | . . . . Slashing Weapon . | . . . . Piercing Weapon . | . . . . Special Melee Weapon . | . . . . Unidentified Prototypes . | . . . . Parts Lost 8 | . 1 . 7 Power 1 | . . . 1 Propulsion 2 | . . . 2 Utility 1 | . . . 1 Weapon 4 | . 1 . 3 Highest Loss Streak 7 | . 1 . 7 Average Slot Usage (%) 77 | . 86 100 41 Engine 7 | . 7 14 5 Treads 8 | . 14 . . Flight 14 | . 14 28 8 Device 11 | . 14 14 5 Processor 13 | . 14 14 11 Energy Gun 17 | . 18 28 9 Energy Cannon 2 | . 4 . 1 Naked Turns . | . . . . Heaviest Build 8 | 3 8 8 8 Greatest Support 8 | 3 8 8 8 Greatest Overweight (x) 1 | . 1 . . Average Overweight (x) . | . . . . Largest Inventory Capacity 4 | 4 4 4 4 Average Capacity 4 | 4 4 4 4 Most Carried 4 | 3 4 4 4 Average Carried 3 | 1 3 4 3 Final Capacity 4 | 4 4 4 4 Final Carried 4 | 3 4 4 3 Class Distribution -------------------- 53% | Mutant 46% | Scavenger-Mutant Dominant Class ---------------- Scavenger-Mutant | -10/Materials Scavenger-Mutant | -10/Mines Mutant | -9/Materials Resources | -11 -10 -10 -9 ----------- Run | Scr Mat Min Mat Matter Collected 325 | 210 111 4 . Remotely . | . . . . Salvage Created 167 | 12 139 16 . Parts 18 | 6 10 2 . Haulers Intercepted . | . . . . Recyclers Shooed . | . . . . Parts Field Recycled . | . . . . Retrieved Matter . | . . . . Parts Self-Destructed . | . . . . Prevented . | . . . . Kills | -11 -10 -10 -9 ------- Run | Scr Mat Min Mat Combat Hostiles Destroyed 3 | . 3 . . Guns 3 | . 3 . . Classes Destroyed 5 | 1 3 1 . Worker 1 | . . 1 . Tunneler 1 | 1 . . . Recycler 1 | . 1 . . Watcher 1 | . 1 . . Swarmer 3 | . 3 . . Best Kill Streak 3 | 1 3 1 . Combat Bots Only 3 | . 3 . . Max Kills in Single Turn 1 | 1 1 1 . Gunslinging . | . . . . Exploded . | . . . . Melee . | . . . . Uniques/NPCs Destroyed . | . . . . Combat | -11 -10 -10 -9 -------- Run | Scr Mat Min Mat Damage Taken 634 | . 170 31 433 Core 214 | . . 7 207 Absorbed by Shields . | . . . . Core Remaining (%) 98 | 100 . 97 . Volleys Fired 24 | 2 14 1 7 Largest 2 | 1 2 2 2 Hottest 100 | 50 100 80 100 Shots Fired 35 | 2 18 2 13 Gun 32 | 2 17 2 11 Cannon 3 | . 1 . 2 Launcher . | . . . . Special . | . . . . Kinetic . | . . . . Thermal 18 | 2 14 . 2 Explosive . | . . . . Electromagnetic 17 | . 4 2 11 Robot Hit Streak 7 | . 3 5 7 Robot Miss Streak 4 | 2 4 . 2 Penetration Max . | . . . . Secondary Targets . | . . . . Shots Hit Robots 18 | . 9 2 7 Core Hits 8 | 1 5 1 1 Critical Hits . | . . . . Critical Kills . | . . . . Critical Parts Destroyed . | . . . . Melee Attacks . | . . . . Impact . | . . . . Slashing . | . . . . Piercing . | . . . . Sneak Attacks . | . . . . Combat Hostiles . | . . . . Follow-up Attacks . | . . . . Damage Inflicted 271 | 13 137 27 94 Guns 253 | 13 137 27 76 Cannons 18 | . . . 18 Explosions . | . . . . Melee . | . . . . Ramming . | . . . . Kinetic . | . . . . Thermal 133 | 13 102 . 18 Explosive . | . . . . Electromagnetic 138 | . 35 27 76 Impact . | . . . . Slashing . | . . . . Piercing . | . . . . Highest Corruption 2 | . . . 2 Average Corruption 1 | . . . 1 Corruption Purged . | . . . . Overload Shots . | . . . . Overflow Damage . | . . . . Projectiles . | . . . . Explosions . | . . . . Melee . | . . . . Knockbacks . | . . . . Impact . | . . . . Kinetic . | . . . . Secondary . | . . . . Self-Inflicted Damage . | . . . . Shots . | . . . . Rammed . | . . . . Targets Rammed . | . . . . Kicked . | . . . . Crushed . | . . . . Highest Temperature 151 | . 45 24 151 Average Temperature 43 | . 15 14 69 Received Heat Transfer 120 | . . . 120 Siege Activations . | . . . . Robots Corrupted . | . . . . Combat Hostiles . | . . . . Parts Fried . | . . . . Impact Corruptions . | . . . . Robots Melted . | . . . . Combat Hostiles . | . . . . Parts Melted . | . . . . Heat Transferred 299 | 37 225 . 37 Parts Sabotaged . | . . . . Parts Stolen . | . . . . Parts Stripped . | . . . . Power Chain Reactions . | . . . . Missiles Intercepted . | . . . . Alert | -11 -10 -10 -9 ------- Run | Scr Mat Min Mat Peak Influence 85 | 5 85 53 73 Average Influence 37 | 2 44 39 32 Maximum Alert Level . | . . . . Low Security (%) 100 | 100 100 100 100 Level 1 . | . . . . Level 2 . | . . . . Level 3 . | . . . . Level 4 . | . . . . Level 5 . | . . . . High Security . | . . . . Max Security . | . . . . Squads Dispatched . | . . . . Investigation . | . . . . Extermination . | . . . . Reinforcement . | . . . . Assault . | . . . . Garrison . | . . . . Intercept . | . . . . Construction Impeded . | . . . . Haulers Reinforced . | . . . . Stealth | -11 -10 -10 -9 --------- Run | Scr Mat Min Mat Distress Signals . | . . . . Communications Jammed . | . . . . Distress Signals . | . . . . Times Spotted 16 | . 5 6 5 Peak Tracking Total 6 | . 4 6 4 Tactical Retreats 1 | . . . 1 Traps | -11 -10 -10 -9 ------- Run | Scr Mat Min Mat Traps Triggered 3 | . . . 3 Indirectly . | . . . . Trap Hack Attempts . | . . . . Triggered . | . . . . Disarmed . | . . . . Reprogrammed . | . . . . Reused . | . . . . Traps Extracted . | . . . . Installed . | . . . . Triggered . | . . . . Machines | -11 -10 -10 -9 ---------- Run | Scr Mat Min Mat Machines Disabled 1 | . . . 1 Max in Single Turn 1 | . . . 1 Machines Sabotaged . | . . . . Garrisons Compromised . | . . . . Overloaded Fab Kills . | . . . . Fab Network Shutdowns . | . . . . Hacking | -11 -10 -10 -9 --------- Run | Scr Mat Min Mat Machines Accessed 2 | . 1 . 1 Terminals 2 | . 1 . 1 Fabricators . | . . . . Repair Stations . | . . . . Recycling Units . | . . . . Scanalyzers . | . . . . Garrison Access . | . . . . Total Hacks 7 | . 5 . 2 Successful 3 | . 2 . 1 Failed 4 | . 3 . 1 Catastrophic . | . . . . Database Lockouts . | . . . . Manual 5 | . 3 . 2 Terminals 7 | . 5 . 2 Fabricators . | . . . . Repair Stations . | . . . . Recycling Units . | . . . . Scanalyzers . | . . . . Garrison Access . | . . . . Terminal Hacks 1 | . 1 . . Locate Traps 1 | . 1 . . Fabricator Hacks . | . . . . Repair Station Hacks . | . . . . Recycling Unit Hacks . | . . . . Scanalyzer . | . . . . Garrison Access Hacks . | . . . . Unauthorized Hacks 2 | . 1 . 1 Terminals 2 | . 1 . 1 Track 2 | . 1 . 1 Fabricators . | . . . . Repair Stations . | . . . . Recycling Units . | . . . . Scanalyzers . | . . . . Garrison Access . | . . . . Data Cores Recovered . | . . . . Used . | . . . . Hacking Detections 2 | . 1 . 1 Full Trace Events . | . . . . Feedback Events . | . . . . Feedback Blocked . | . . . . Robot Schematics Acquired . | . . . . Robots Built . | . . . . Matter . | . . . . Time . | . . . . Total Robot Build Rating . | . . . . Part Schematics Acquired . | . . . . Parts Built . | . . . . Matter . | . . . . Time . | . . . . Total Part Build Rating . | . . . . Parts Repaired . | . . . . Time . | . . . . Parts Recycled . | . . . . Recycled Matter . | . . . . Retrieved Matter . | . . . . Retrieved Components . | . . . . Parts Scanalyzed . | . . . . Part Schematics Acquired . | . . . . Parts Damaged . | . . . . Bothacking | -11 -10 -10 -9 ------------ Run | Scr Mat Min Mat Used RIF Installer . | . . . . Robots Hacked . | . . . . Non-combat . | . . . . Combat . | . . . . Robot Hacks Applied . | . . . . Relay Couplers Released . | . . . . Robots Rewired . | . . . . Allies Hacked . | . . . . Hacks Repelled . | . . . . Allies | -11 -10 -10 -9 -------- Run | Scr Mat Min Mat Total Allies . | . . . . Largest Group . | . . . . Highest-Rated Group . | . . . . Highest-Rated Ally . | . . . . Total Orders . | . . . . Ally Attacks . | . . . . Total Damage . | . . . . Kills . | . . . . Allies Corrupted . | . . . . Allies Melted . | . . . . Intel | -11 -10 -10 -9 ------- Run | Scr Mat Min Mat Robot Analysis Total . | . . . . Derelict Logs Recovered 1 | . . 1 . Drone Launches . | . . . . Drone Recoveries . | . . . . Exploration | -11 -10 -10 -9 ------------- Run | Scr Mat Min Mat Turns Passed 365 | 37 195 48 85 Spaces Moved 568 | 41 306 116 105 Core 229 | 41 112 . 76 Treads . | . . . . Legs . | . . . . Wheels . | . . . . Hover . | . . . . Flight 339 | . 194 116 29 Fastest Speed 37 | 50 37 37 37 Average Speed 42 | 50 42 37 46 Slowest Speed 120 | 50 120 37 50 Overloaded Moves . | . . . . Propulsion Burnouts . | . . . . Robots Hopped 4 | . 3 1 . Cave-ins Triggered . | . . . . Exploration Rate (%) 24 | 3 46 33 17 Regions Visited 3 Branch Regions 1 Pre-discovered Areas . | . . . . Known Exits Taken . | . . . . Unknown Exits Taken 3 | 1 1 1 . Scrap Searched . | . . . . Spaces Dug . | . . . . Terrain Destroyed . | . . . . Melee . | . . . . Projectile . | . . . . AOE . | . . . . Actions | -11 -10 -10 -9 --------- Run | Scr Mat Min Mat Total 647 | 52 350 117 128 Wait 36 | 2 17 2 15 Move 557 | 40 299 113 105 Hop 4 | . 3 1 . Pick Up 6 | 3 3 . . Fast Attach 11 | 5 6 . . Attach 3 | . 2 . 1 Detach 1 | . 1 . . Swap . | . . . . Drop 5 | . 5 . . Fire 24 | 2 14 1 7 Melee . | . . . . Ram . | . . . . Kick . | . . . . Crush . | . . . . Escape Stasis . | . . . . Rewire . | . . . . Trap . | . . . . Miscellaneous . | . . . . Route ------- -11/Scrapyard -10/Materials (discovered 2 exits: [*Min x2]) -10/Mines -9/Materials History --------- Turn | Location | Event 14 | -11/Scrapyard | Discovered new exit (range 16) 38 | -11/Scrapyard | Entered Materials 68 | -10/Materials | Discovered new exit (range 11) 192 | -10/Materials | Discovered new exit (range 7) 233 | -10/Materials | Entered Mines 266 | -10/Mines | Met a Derelict bent on vengeance 266 | -10/Mines | Discovered new exit (range 11) 281 | -10/Mines | Entered Materials 281 | -9/Materials | Evolved 2 slots: Propulsion x1, Utility x1 359 | -9/Materials | Lost 7 parts (1p2n1u3w) 362 | -9/Materials | Core integrity fell below 50% 366 | -9/Materials | Self-destructed Last Messages --------------- Tracking enabled and active. 00305_ Flight Unit destroyed. 00313_ Terminal disabled. 00315_ EM Pulse Gun destroyed. 00317_ Y-45 Defender misfires. 00321_ Imp. Terrain Scanner destroyed. 00323_ Lgt. Ion Engine destroyed. 00323_ EM Pulse Gun destroyed. 00324_ Beam Cannon destroyed. 00328_ Flight Unit destroyed. 00343_ K-01 Serf collects debris. 00357_ Triggered Shock Trap. 00357_ The floor emits a surge of raw power. 00357_ System corrupted (+1). 00358_ Triggered Shock Trap. 00358_ The floor emits a surge of raw power. 00358_ System corrupted (+1). 00359_ Triggered Explosive Trap. 00359_ An explosion rips through the floor. 00360_ K-01 Serf collects debris. Map ----- +----------------------------------------------------+ | ??????????????????????????????????????????? | | ??????????????????????????????????????????? | | ??????????????????????????????????????????? | | ??????????????????????????????????????????? | | ??????????????????????????????????????????? | | ??????????????????????????????????????????? | | ??????????????????????????????????????????? | | ??????????????????????????????????????????? | | ??????????????????????????????????????????? | | ??????????????????????????????????????????? | | ?????????????????? s?????????????????????? | | ?????????????????? ????????????????????? | | ?????????????????? #????????????????????? | | ?????????????????? #????????????????????? | | ?????????????????? #????????????????????? | | ?????????????????+ #????????????????????? | | ?????????????????# #????????????????????? | | ?????????????????# #????????????????????? | | ?????????????????# #????????????????????? | | ?????????????????# #????????????????????? | | ?????????????????# #????????????????????? | | ?????????????????# #????????????????????? | | ?????????????????# #????????????????????? | | ?????????????????# #????????????????????? | | ?????????????????+ #??#####?????????????? | | ?????????????????#@ #? #?????????????? | | ?????????????????# #? #?????????????? | | ?????????????????# # #?????????????? | | ?????????????????# # #?????????????? | | ?????????????????# + #?????????????? | | ?????????????????# # #?????????????? | | ?????????????????# ########?????????????? | | ?????????????????# #????????????????????? | | ?????????????????# #????????????????????? | | ????######???????# #????????????????????? | | ????# / ???#### #????????????????????? | | ????# #### #????????????????????? | | ????# """ + #????????????????????? | | ????# """ # b #????????????????????? | | ????# """ # #????????????????????? | | ????# ?# #????/???????????????? | | ????######## #???!//#?????????????? | | ?????????#"" !!= #? #?????????????? | | ?????????#"Y !!= # ##????????????? | | ######???#"" !== ???????????? | | #[ #???### ???????????? | | # #?????# ! ???????????? | | # #?????# #######+##???????????????? | | # ####### #????????????????????????? | | # / #????????????????????????? | +----------------------------------------------------+ Best States ------------- Heat Dissipation 28 Energy Generation 10 Energy Capacity 125 Matter Stores 300 Matter Capacity 300 Sight Range 16 Terrain Scan Range 16 Terrain Scan Density 60 Evasion (%) 62 Item Schematics ----------------- None Robot Schematics ------------------ None Fabricated ------------ Nothing Alien Tech Used ----------------- None Achievements -------------- None Challenges ------------ None Game ------ Seed NetworkArmageddonSword Manual? 0 Play Time 00:12:06 Cumulative 189.2 hours Start 2020.06.27 @ 19:43:24 End 2020.06.27 @ 19:59:41 Sessions 1 Manual Loads 0 Difficulty Rogue Special Mode None Game No. 130 Rogue 130 Adventurer 0 Explorer 0 Win Type - Total 1 Types 1/0/0/0/0/0/0 Lore% 52 Gallery% 67 Achievement% 48 Wizard Run 0 Options --------- ASCII 0 Keyboard 0 Movement Mouse Keybinds 0 Fullscreen 1 Font 18/SmallcapsGlow Map View 76x50 Tactical HUD 1 Map Filters NONE Filters NONE Steam 1 RUN: f25f4862-7210-430e-aaf4-1d4248e8e33d